bitfinex-derivatives/quotes_BTCF0:USTF0_20241005
["timestamp","ask_amount","ask_price","bid_price","bid_amount"]
[1728167616234,0.22370963,62032.0,62031.0,0.0024]
[1728167617344,0.09602213,62032.0,62031.0,0.0024]
[1728167617536,0.0004,62032.0,62031.0,0.12878]
[1728167617737,0.0004,62032.0,62031.0,1.21242]
[1728167618243,0.0004,62032.0,62031.0,0.61242]
[1728167618544,0.0004,62032.0,62031.0,0.15736922]
[1728167618737,0.0004,62032.0,62031.0,0.09188922]
[1728167618938,0.0004,62032.0,62031.0,0.09288922]
[1728167620441,0.064879,62032.0,62031.0,0.09288922]
[1728167622256,0.064879,62032.0,62031.0,0.0643]
[1728167622549,0.064879,62032.0,62031.0,0.0334]
[1728167635854,0.064879,62032.0,62031.0,0.0815625]
[1728167636555,0.064879,62032.0,62031.0,0.08156412]
[1728167637063,0.064879,62032.0,62031.0,0.0334]
[1728167642867,0.064879,62032.0,62031.0,0.08157053]
[1728167643166,0.164879,62032.0,62031.0,0.08157053]
[1728167643359,0.164879,62032.0,62031.0,0.0334]
[1728167643560,0.164879,62032.0,62031.0,0.08157053]
[1728167644657,0.164879,62032.0,62031.0,0.0334]
[1728167644859,0.164879,62032.0,62031.0,0.3942]
[1728167645766,0.0004,62032.0,62031.0,0.60688251]
[1728167646364,0.0004,62032.0,62031.0,0.55868]
[1728167646765,0.0004,62032.0,62031.0,0.62285156]
[1728167646956,0.0004,62032.0,62031.0,0.55868]
[1728167648064,0.0004,62032.0,62031.0,0.45868]
[1728167648968,0.03153741,62032.0,62031.0,0.45868]
[1728167650669,0.03153741,62032.0,62031.0,0.42768]
[1728167652267,0.09601641,62032.0,62031.0,0.3632]
[1728167654273,0.09601641,62032.0,62031.0,0.0024]
[1728167654467,0.09601641,62032.0,62031.0,0.3632]
[1728167654773,0.09601641,62032.0,62031.0,0.0024]
[1728167655168,0.09601641,62032.0,62031.0,0.3632]
[1728167655368,0.09601641,62032.0,62031.0,0.0024]
[1728167655568,0.09601641,62032.0,62031.0,0.3632]
[1728167655569,0.09601761,62032.0,62031.0,0.3632]
[1728167655768,0.064879,62032.0,62031.0,0.3632]
[1728167656375,0.064879,62032.0,62031.0,0.0024]
[1728167656569,0.064879,62032.0,62031.0,0.3632]
[1728167659271,0.064879,62032.0,62031.0,0.0024]
[1728167660074,0.064879,62032.0,62031.0,0.3632]
[1728167660270,0.064879,62032.0,62031.0,0.0024]
[1728167660477,0.064879,62032.0,62031.0,0.3632]
[1728167660783,0.064879,62032.0,62031.0,0.0024]
[1728167660977,0.064879,62032.0,62031.0,0.3632]
[1728167662283,0.064879,62032.0,62031.0,0.0024]
[1728167662483,0.064879,62032.0,62031.0,0.3632]
[1728167662875,0.064879,62032.0,62031.0,0.0024]
[1728167663075,0.064879,62032.0,62031.0,0.3632]
[1728167663778,0.09601714,62032.0,62031.0,0.3632]
[1728167664284,0.09601714,62032.0,62031.0,0.0024]
[1728167664583,0.09601714,62032.0,62031.0,0.3632]
[1728167664969,0.09601714,62032.0,62031.0,0.0024]
[1728167665178,0.09601714,62032.0,62031.0,0.3632]
[1728167666784,0.09601714,62032.0,62031.0,0.42768]
[1728167667288,0.03153814,62032.0,62031.0,0.42768]
[1728167667787,0.03153814,62032.0,62031.0,0.91132]
[1728167667788,0.0004,62032.0,62031.0,0.91132]
[1728167668478,0.0004,62032.0,62031.0,0.94232]
[1728167668882,0.0004,62032.0,62031.0,0.45868]
[1728167670488,0.0004,62032.0,62031.0,0.45768]
[1728167671489,0.0004,62032.0,62031.0,0.45868]
[1728167673878,0.0004,62032.0,62031.0,0.45768]
[1728167674377,0.0004,62032.0,62031.0,0.45668]
[1728167674582,0.0004,62032.0,62031.0,0.45768]
[1728167679287,0.03167278,62032.0,62031.0,0.45768]
[1728167685106,0.0316718,62032.0,62031.0,0.45768]
[1728167685792,0.0004,62032.0,62031.0,0.45768]
[1728167690500,0.0038,62041.0,62038.0,0.064473]
[1728167690702,0.0038,62041.0,62040.0,0.22869088]
[1728167690703,1e-08,62041.0,62040.0,0.22869088]
[1728167690908,1e-08,62041.0,62040.0,0.20518968]
[1728167691198,1e-08,62041.0,62040.0,0.30180021]
[1728167691402,1e-08,62041.0,62040.0,0.23038749]
[1728167692102,1e-08,62041.0,62040.0,0.23138749]
[1728167692308,1e-08,62041.0,62040.0,0.19107017]
[1728167693007,1e-08,62041.0,62040.0,0.25518011]
[1728167693198,1e-08,62041.0,62040.0,0.19107017]
[1728167693396,1e-08,62041.0,62040.0,0.21877139]
[1728167693893,0.0004,62049.0,62041.0,0.48356]
[1728167694094,0.0004,62049.0,62048.0,0.164862]
[1728167695600,0.0004,62049.0,62048.0,0.165862]
[1728167696201,0.0004,62049.0,62048.0,0.065862]
[1728167696401,0.0004,62049.0,62048.0,0.165862]
[1728167697003,0.0004,62049.0,62048.0,0.166862]
[1728167700601,0.0004,62049.0,62048.0,0.09559788]
[1728167701806,0.0004,62049.0,62048.0,0.19559788]
[1728167703610,0.0004,62049.0,62048.0,0.55639788]
[1728167714442,0.0004,62049.0,62048.0,0.45639788]
[1728167717933,0.0307,62054.0,62053.0,0.064457]
[1728167718133,0.0307,62054.0,62053.0,0.164857]
[1728167718442,0.0624451,62054.0,62053.0,0.525657]
[1728167718841,0.0307,62054.0,62053.0,0.525657]
[1728167719032,0.03230328,62054.0,62053.0,0.525657]
[1728167719240,0.03230328,62054.0,62053.0,0.526657]
[1728167719742,0.0004,62054.0,62053.0,0.526657]
[1728167719927,0.0004,62054.0,62053.0,0.527657]
[1728167720536,0.0004,62054.0,62053.0,0.166857]
[1728167720739,0.0004,62054.0,62053.0,0.888457]
[1728167721046,0.03248635,62054.0,62053.0,0.888457]
[1728167721432,0.0004,62054.0,62053.0,0.888457]
[1728167722139,0.03248081,62054.0,62053.0,0.888457]
[1728167722337,0.0004,62054.0,62053.0,0.888457]
[1728167722540,0.064453,62057.0,62056.0,0.064454]
[1728167722843,0.09655742,62057.0,62056.0,0.164854]
[1728167723637,0.09655742,62057.0,62056.0,0.178854]
[1728167724039,0.064453,62057.0,62056.0,0.192854]
[1728167727438,0.064453,62057.0,62056.0,0.22077846]
[1728167732148,0.064453,62057.0,62056.0,0.58157846]
[1728167733335,0.064453,62057.0,62056.0,0.48157846]
[1728167739242,0.09655766,62057.0,62056.0,0.48157846]
[1728167739655,0.13601487,62057.0,62056.0,0.12077846]
[1728167739948,0.09655766,62057.0,62056.0,0.48157846]
[1728167740349,0.09655766,62057.0,62056.0,0.12077846]
[1728167740548,0.09655766,62057.0,62056.0,0.48157846]
[1728167741362,0.13601488,62057.0,62056.0,0.48157846]
[1728167742848,0.13601488,62057.0,62056.0,0.12077846]
[1728167743252,0.13601488,62057.0,62056.0,0.48157846]
[1728167746052,0.064453,62057.0,62056.0,0.48157846]
[1728167747258,0.064453,62057.0,62056.0,0.12077846]
[1728167747557,0.064453,62057.0,62056.0,0.48157846]
[1728167749949,0.064453,62057.0,62056.0,0.12077846]
[1728167750153,0.064453,62057.0,62056.0,0.48157846]
[1728167751249,0.0004,62059.0,62058.0,0.064452]
[1728167751452,0.0004,62059.0,62058.0,0.064852]
[1728167751753,0.0004,62059.0,62058.0,0.164852]
[1728167751754,0.03254412,62059.0,62058.0,0.164852]
[1728167751947,0.00661753,62067.0,62064.0,0.064446]
[1728167752153,0.00661753,62067.0,62066.0,0.064444]
[1728167752154,0.00281753,62067.0,62066.0,0.064444]
[1728167752353,0.0004,62068.0,62066.0,0.45751479]
[1728167752554,0.0038,62072.0,62071.0,0.064439]
[1728167752766,0.0004,62075.0,62074.0,0.064435]
[1728167752957,0.0004,62075.0,62074.0,0.164435]
[1728167753160,0.0004,62075.0,62074.0,0.164835]
[1728167754162,0.03984768,62075.0,62074.0,0.164835]
[1728167754360,0.0004,62075.0,62074.0,0.164835]
[1728167754663,0.0004,62075.0,62074.0,0.178835]
[1728167755251,0.0004,62075.0,62074.0,0.192835]
[1728167755765,0.0004,62075.0,62074.0,0.092835]
[1728167756262,0.064834,62075.0,62074.0,0.092835]
[1728167757772,0.064834,62075.0,62074.0,0.079835]
[1728167758266,0.064834,62075.0,62074.0,0.066835]
[1728167760570,0.064834,62075.0,62074.0,0.0024]
[1728167767167,0.164834,62075.0,62074.0,0.0024]
[1728167769167,0.28589447,62075.0,62074.0,0.0024]
[1728167769372,0.18589447,62075.0,62074.0,0.0024]
[1728167770278,0.13644591,62075.0,62074.0,0.0024]
[1728167773064,0.13645192,62075.0,62074.0,0.0024]
[1728167775893,0.13645192,62075.0,62074.0,0.1024]
[1728167775894,0.07201792,62075.0,62074.0,0.1024]
[1728167776179,0.0004,62078.0,62077.0,0.064432]
[1728167776370,0.0042,62086.0,62082.0,0.064427]
[1728167776686,0.0042,62086.0,62082.0,0.164427]
[1728167776687,0.0004,62083.0,62082.0,0.164427]
[1728167776874,0.0004,62083.0,62082.0,0.164827]
[1728167777174,0.0004,62083.0,62082.0,0.064827]
[1728167777382,0.0004,62083.0,62082.0,0.164827]
[1728167777874,0.0004,62083.0,62082.0,0.525627]
[1728167778079,0.0004,62083.0,62082.0,0.539627]
[1728167778977,0.0004,62083.0,62082.0,0.58157663]
[1728167781170,0.0004,62086.0,62082.0,1.60038963]
[1728167781377,0.0004,62086.0,62085.0,0.164824]
[1728167782381,0.0004,62086.0,62085.0,0.178824]
[1728167784280,0.0004,62086.0,62085.0,0.192824]
[1728167784877,0.0004,62086.0,62085.0,0.092824]
[1728167786888,0.0004,62086.0,62085.0,0.192824]
[1728167787384,0.0004,62086.0,62085.0,0.553624]
[1728167787683,0.0004,62086.0,62085.0,0.453624]
[1728167788687,0.0004,62086.0,62085.0,0.553624]
[1728167806601,0.03313022,62086.0,62085.0,0.553624]
[1728167807503,0.07256532,62086.0,62085.0,0.553624]
[1728167809792,0.04346532,62086.0,62085.0,0.553624]
[1728167809995,0.0038,62091.0,62085.0,0.4892]
[1728167810306,0.0004,62092.0,62090.0,0.1004]
[1728167810692,0.0004,62092.0,62091.0,0.0004]
[1728167810896,0.0004,62092.0,62091.0,0.064818]
[1728167812202,0.0004,62092.0,62091.0,0.065818]
[1728167813405,0.0004,62092.0,62091.0,0.427618]
[1728167815093,0.0004,62092.0,62091.0,0.458518]
[1728167815504,0.0004,62092.0,62091.0,0.48714808]
[1728167817305,0.0004,62092.0,62091.0,0.84794808]
[1728167818905,0.0004,62092.0,62091.0,0.81704808]
[1728167823401,0.0004,62092.0,62091.0,0.09544808]
[1728167823610,0.0004,62092.0,62091.0,0.81704808]
[1728167828106,0.0004,62092.0,62091.0,0.91704808]
[1728167828308,0.0721063,62092.0,62091.0,0.91704808]
[1728167828913,0.03267188,62092.0,62091.0,0.91704808]
[1728167830517,0.07210535,62092.0,62091.0,0.91704808]
[1728167830714,0.0721051,62092.0,62091.0,0.91704808]
[1728167831199,0.07210536,62092.0,62091.0,0.91704808]
[1728167833103,0.07219858,62092.0,62091.0,0.91704808]
[1728167833519,0.07219858,62092.0,62091.0,0.81704808]
[1728167833709,0.12162664,62092.0,62091.0,0.81704808]
[1728167833911,0.07219858,62092.0,62091.0,0.81704808]
[1728167834112,0.12162659,62092.0,62091.0,0.81704808]
[1728167834713,0.26681363,62092.0,62091.0,0.81704808]
[1728167836321,0.18502063,62092.0,62091.0,0.81704808]
[1728167836616,0.0004,62092.0,62091.0,0.81704808]
[1728167843523,0.07213236,62092.0,62091.0,0.81704808]
[1728167844523,0.07213236,62092.0,62091.0,0.84222709]
[1728167844729,0.07213236,62092.0,62091.0,0.87332709]
[1728167847032,0.07217483,62092.0,62091.0,0.87332709]
[1728167847234,0.03274345,62092.0,62091.0,0.87332709]
[1728167847736,0.03983138,62092.0,62091.0,0.87332709]
[1728167848138,0.07217483,62092.0,62091.0,0.87332709]
[1728167848848,0.0004,62096.0,62091.0,0.87332709]
[1728167849141,0.0004,62096.0,62095.0,0.164814]
[1728167849443,0.0004,62096.0,62095.0,0.18999301]
[1728167850536,0.0004,62096.0,62095.0,0.164814]
[1728167850732,0.0004,62096.0,62095.0,0.18999042]
[1728167851538,0.0004,62096.0,62095.0,0.19099042]
[1728167852834,0.0004,62096.0,62095.0,0.19199042]
[1728167854149,0.0004,62096.0,62095.0,0.166814]
[1728167854343,0.0004,62096.0,62095.0,0.19199078]
[1728167857351,0.0004,62096.0,62095.0,0.19199084]
[1728167859045,0.03225749,62096.0,62095.0,0.19199084]
[1728167859245,0.03225749,62096.0,62095.0,0.166814]
[1728167861251,0.0004,62099.0,62098.0,0.064411]
[1728167861455,0.0004,62099.0,62098.0,0.164811]
[1728167861636,0.0004,62099.0,62098.0,0.18998569]
[1728167861945,0.0004,62099.0,62098.0,0.164811]
[1728167862541,0.0004,62099.0,62098.0,0.166811]
[1728167865248,0.0004,62099.0,62098.0,0.19507319]
[1728167866143,0.0004,62099.0,62098.0,0.22024789]
[1728167866438,0.0004,62099.0,62098.0,0.19507319]
[1728167868353,0.0004,62099.0,62098.0,0.22024802]
[1728167868555,0.0004,62099.0,62098.0,0.19507319]
[1728167872253,0.0004,62099.0,62098.0,0.22024753]
[1728167873139,0.0004,62099.0,62098.0,0.19507319]
[1728167873343,0.0004,62099.0,62098.0,0.22024786]
[1728167873543,0.0004,62099.0,62098.0,0.19507319]
[1728167873952,0.0038,62109.0,62105.0,0.064403]
[1728167874150,0.0331,62110.0,62105.0,0.164803]
[1728167874346,0.0331,62110.0,62107.0,0.3608]
[1728167874347,0.03179938,62109.0,62107.0,0.3608]
[1728167874548,0.0331,62110.0,62107.0,0.3608]
[1728167874549,0.03179938,62108.0,62107.0,0.3608]
[1728167874747,0.03179938,62109.0,62107.0,0.3608]
[1728167874948,0.0331,62110.0,62107.0,0.3608]
[1728167874949,0.03179938,62108.0,62107.0,0.425201]
[1728167875250,0.0618,62113.0,62112.0,0.064396]
[1728167875551,0.0618,62113.0,62112.0,0.064796]
[1728167875552,0.09369326,62113.0,62112.0,0.064796]
[1728167875746,0.0618,62113.0,62112.0,0.064796]
[1728167876257,0.0038,62120.0,62119.0,0.064389]
[1728167876550,0.064375,62133.0,62119.0,0.0004]
[1728167876551,0.0358,62127.0,62119.0,0.0004]
[1728167876758,0.03231902,62126.0,62125.0,0.1]
[1728167876949,0.51519902,62126.0,62125.0,0.1]
[1728167877253,0.51519902,62126.0,62119.0,0.0004]
[1728167877254,0.032,62129.0,62119.0,0.0004]
[1728167877449,0.032,62129.0,62128.0,0.1004]
[1728167877855,0.06453263,62129.0,62128.0,0.1004]
[1728167878253,0.032,62129.0,62128.0,0.1004]
[1728167878554,0.032,62129.0,62128.0,0.0004]
[1728167878555,1.11488,62129.0,62128.0,0.0004]
[1728167878759,1.179258,62129.0,62128.0,0.0004]
[1728167879265,1.179258,62129.0,62128.0,0.0144]
[1728167879652,1.179258,62129.0,62128.0,0.04228358]
[1728167880747,1.179258,62129.0,62128.0,0.0284]
[1728167880948,0.064384,62124.0,62123.0,0.0113]
[1728167881149,0.064384,62124.0,62119.0,0.0004]
[1728167881150,0.1004,62124.0,62119.0,0.0004]
[1728167881345,0.1004,62120.0,62119.0,0.0004]
[1728167882144,0.764788,62120.0,62119.0,0.0004]
[1728167882347,0.064788,62120.0,62119.0,0.0004]
[1728167883267,0.064788,62120.0,62119.0,0.0014]
[1728167883946,0.075788,62120.0,62119.0,0.0014]
[1728167884761,0.086788,62120.0,62119.0,0.0014]
[1728167885954,0.086788,62120.0,62119.0,0.1014]
[1728167891454,0.086788,62120.0,62119.0,0.0014]
[1728167895756,0.086788,62120.0,62119.0,0.3622]
[1728167896156,0.086788,62120.0,62119.0,0.4622]
[1728167898865,0.086788,62120.0,62119.0,0.3622]
[1728167905274,0.11899651,62120.0,62119.0,0.3622]
[1728167908462,0.086788,62120.0,62119.0,0.3622]
[1728167909277,0.11911602,62120.0,62119.0,0.3622]
[1728167909870,0.086788,62120.0,62119.0,0.3622]
[1728167910876,0.11911824,62120.0,62119.0,0.3622]
[1728167911061,0.05473024,62120.0,62119.0,0.3622]
[1728167911262,0.0224,62120.0,62119.0,0.426589]
[1728167913274,0.086788,62120.0,62119.0,0.3622]
[1728167917480,0.086788,62120.0,62119.0,0.0014]
[1728167917681,0.086788,62120.0,62119.0,0.3622]
[1728167923376,0.086788,62120.0,62119.0,0.0014]
[1728167923976,0.086788,62120.0,62119.0,0.3622]
[1728167924580,0.086788,62120.0,62119.0,0.0014]
[1728167924978,0.086788,62120.0,62119.0,0.3622]
[1728167925670,0.086788,62120.0,62119.0,0.41015024]
[1728167925874,0.086788,62120.0,62119.0,0.3622]
[1728167926383,0.086788,62120.0,62119.0,0.0014]
[1728167933884,0.11905196,62120.0,62119.0,0.0014]
[1728167934785,0.21905196,62120.0,62119.0,0.0014]
[1728167935772,0.11905196,62120.0,62119.0,0.0014]
[1728167940689,0.086788,62120.0,62119.0,0.0014]
[1728167940890,0.11907986,62120.0,62119.0,0.0014]
[1728167941793,0.086788,62120.0,62119.0,0.0014]
[1728167944689,0.086788,62120.0,62115.0,0.04795024]
[1728167944690,1.530548,62120.0,62115.0,0.04795024]
[1728167944993,1.530548,62120.0,62107.0,0.0044]
[1728167944994,0.064393,62115.0,62107.0,0.0044]
[1728167945200,0.064402,62106.0,62105.0,0.36424]
[1728167945400,0.164802,62106.0,62105.0,0.0004]
[1728167945603,1.247842,62106.0,62098.0,0.0004]
[1728167945895,0.06481,62099.0,62098.0,0.0004]
[1728167946783,0.06481,62099.0,62098.0,0.0104]
[1728167947386,0.06481,62099.0,62098.0,0.0004]
[1728167947707,0.06481,62099.0,62098.0,0.0034]
[1728167948199,0.09621,62099.0,62098.0,0.0074]
[1728167949088,0.09621,62099.0,62098.0,0.0044]
[1728167949089,1.19133,62099.0,62098.0,0.0044]
[1728167949295,1.20133,62099.0,62098.0,0.0014]
[1728167949994,1.20433,62099.0,62098.0,0.0014]
[1728167950402,0.12121,62099.0,62098.0,0.0014]
[1728167950699,0.22121,62099.0,62098.0,0.0014]
[1728167951794,0.18981,62099.0,62098.0,0.0014]
[1728167955094,0.08981,62099.0,62098.0,0.0014]
[1728167956904,0.08981,62099.0,62098.0,0.02931292]
[1728167960796,0.08981,62099.0,62098.0,0.0014]
[1728167967006,0.064417,62092.0,62091.0,0.0004]
[1728167967194,0.064418,62091.0,62090.0,0.0004]
[1728167967397,0.158018,62091.0,62090.0,0.0004]
[1728167967595,0.158418,62091.0,62090.0,0.0004]
[1728167968613,1.246578,62091.0,62090.0,0.0004]
[1728167969614,1.250578,62091.0,62090.0,0.0004]
[1728167970501,0.064423,62086.0,62085.0,0.0004]
[1728167970697,0.164823,62086.0,62085.0,0.0004]
[1728167973206,0.164823,62086.0,62085.0,0.0014]
[1728167977720,0.164823,62086.0,62085.0,0.3622]
[1728167978409,0.164823,62086.0,62085.0,0.0014]
[1728167983903,0.064823,62086.0,62085.0,0.0014]
[1728167984108,0.164823,62086.0,62085.0,0.0014]
[1728168001131,0.19593743,62086.0,62085.0,0.0014]
[1728168003233,1.27913743,62086.0,62085.0,0.0014]
[1728168007042,1.63993743,62086.0,62085.0,0.0014]
[1728168007649,0.064426,62083.0,62082.0,0.0004]
[1728168007938,0.164826,62083.0,62082.0,0.0004]
[1728168008341,0.164826,62083.0,62077.0,0.0004]
[1728168008342,0.064431,62078.0,62077.0,0.0004]
[1728168008541,0.064433,62076.0,62075.0,1e-08]
[1728168008848,0.064434,62075.0,62071.0,0.3612]
[1728168009032,0.1004,62072.0,62071.0,0.3612]
[1728168009342,0.064838,62072.0,62071.0,0.3612]
[1728168009539,0.164838,62072.0,62071.0,0.0004]
[1728168010531,0.165838,62072.0,62071.0,0.0074]
[1728168011848,0.166838,62072.0,62071.0,0.0124]
[1728168018149,0.066838,62072.0,62071.0,0.0124]
[1728168018339,0.166838,62072.0,62071.0,0.0124]
[1728168037164,0.166838,62072.0,62071.0,0.07650994]
[1728168038160,0.166838,62072.0,62071.0,0.0124]
[1728168039766,0.166838,62072.0,62071.0,0.04015471]
[1728168040559,0.066838,62072.0,62071.0,0.10459371]
[1728168048165,0.066838,62072.0,62071.0,0.04015471]
[1728168055976,0.066838,62072.0,62071.0,0.07646705]
[1728168056276,0.066838,62072.0,62071.0,0.0124]
[1728168060678,0.166838,62072.0,62071.0,0.0124]
[1728168063585,0.066838,62072.0,62071.0,0.0124]
[1728168069378,0.066838,62072.0,62071.0,0.07646705]
[1728168071188,0.066838,62072.0,62071.0,0.0124]
[1728168071488,0.066838,62072.0,62071.0,0.07646705]
[1728168073794,0.066838,62072.0,62071.0,0.0124]
[1728168081589,0.069838,62072.0,62071.0,0.0074]
[1728168082289,0.068838,62072.0,62071.0,0.0004]
[1728168082489,0.071838,62072.0,62071.0,0.0004]
[1728168084288,0.071838,62072.0,62071.0,0.04846243]
[1728168086286,0.071838,62072.0,62071.0,0.0004]
[1728168091287,0.14240968,62072.0,62071.0,0.0004]
[1728168095998,0.10295786,62072.0,62071.0,0.0004]
[1728168096602,0.14240973,62072.0,62071.0,0.0004]
[1728168097598,0.14241017,62072.0,62071.0,0.0004]
[1728168099295,0.071838,62072.0,62071.0,0.0004]
[1728168099803,0.171838,62072.0,62071.0,0.0004]
[1728168103190,0.20295807,62072.0,62071.0,0.0004]
[1728168105606,0.20295895,62072.0,62071.0,0.0004]
[1728168106797,0.10295895,62072.0,62071.0,0.0004]
[1728168107110,0.20295895,62072.0,62071.0,0.0004]
[1728168108309,0.064442,62068.0,62067.0,0.0004]
[1728168108503,0.19596326,62068.0,62067.0,0.0004]
[1728168110106,0.19596391,62068.0,62067.0,0.0004]
[1728168110504,0.19596391,62068.0,62067.0,0.0014]
[1728168113411,0.23541831,62068.0,62067.0,0.0014]
[1728168117914,0.17097631,62068.0,62066.0,0.0004]
[1728168118115,0.13541931,62067.0,62064.0,0.0004]
[1728168118304,0.1004,62065.0,62064.0,0.0004]
[1728168118508,0.19596691,62065.0,62064.0,0.0004]
[1728168118712,0.06445,62060.0,62059.0,0.0037]
[1728168119010,0.064451,62059.0,62058.0,0.0004]
[1728168119210,0.09597291,62059.0,62058.0,0.0004]
[1728168119612,0.09597705,62059.0,62058.0,0.0004]
[1728168121310,0.09697705,62059.0,62058.0,0.0054]
[1728168121513,0.09697705,62059.0,62058.0,0.0104]
[1728168121514,0.066851,62059.0,62058.0,0.0104]
[1728168122309,0.066851,62059.0,62058.0,0.03797977]
[1728168127214,0.066851,62059.0,62058.0,0.0104]
[1728168128522,0.09797724,62059.0,62058.0,0.0104]
[1728168131816,0.19797724,62059.0,62058.0,0.0104]
[1728168134526,0.55877724,62059.0,62058.0,0.0104]
[1728168136424,0.527651,62059.0,62058.0,0.0104]
[1728168136837,0.166851,62059.0,62058.0,0.0104]
[1728168149436,0.066851,62059.0,62058.0,0.0104]
[1728168149636,0.166851,62059.0,62058.0,0.0104]
[1728168151531,0.19797816,62059.0,62058.0,0.0104]
[1728168158636,0.166851,62059.0,62058.0,0.0104]
[1728168161147,0.165851,62059.0,62058.0,0.0054]
[1728168161443,0.165851,62059.0,62058.0,0.0064]
[1728168161826,0.164851,62059.0,62058.0,0.0034]
[1728168166541,0.23543995,62059.0,62058.0,0.0034]
[1728168171240,0.23543979,62059.0,62058.0,0.0034]
[1728168173139,0.1959784,62059.0,62058.0,0.0034]
[1728168173545,0.164851,62059.0,62058.0,0.0034]
[1728168180942,0.164851,62059.0,62058.0,0.05146243]
[1728168181344,0.164851,62059.0,62058.0,0.0034]
[1728168181743,0.19597597,62059.0,62058.0,0.0034]
[1728168184348,0.19597692,62059.0,62058.0,0.0034]
[1728168188650,0.164851,62059.0,62058.0,0.0034]
[1728168189954,0.064851,62059.0,62058.0,0.0034]
[1728168190158,0.164851,62059.0,62058.0,0.0034]
[1728168190954,0.064851,62059.0,62058.0,0.0034]
[1728168191149,0.164851,62059.0,62058.0,0.0034]
[1728168203668,0.19597712,62059.0,62058.0,0.0034]
[1728168208875,0.19597711,62059.0,62058.0,0.0034]
[1728168211372,0.29843816,62059.0,62058.0,0.0034]
[1728168211776,0.227851,62059.0,62058.0,0.0034]
[1728168214983,0.064456,62054.0,62053.0,0.07632328]
[1728168215169,0.164856,62054.0,62053.0,0.07632328]
[1728168215368,0.164856,62054.0,62053.0,0.02826085]
[1728168216270,0.164856,62054.0,62053.0,0.03326085]
[1728168216271,0.165856,62054.0,62053.0,0.03326085]
[1728168216873,0.166856,62054.0,62053.0,0.03726085]
[1728168221184,0.066856,62054.0,62053.0,0.03726085]
[1728168221379,0.166856,62054.0,62053.0,0.03726085]
[1728168226683,0.066856,62054.0,62053.0,0.03726085]
[1728168226881,0.166856,62054.0,62053.0,0.03726085]
[1728168227773,0.166856,62054.0,62053.0,0.10134409]
[1728168232483,0.166856,62054.0,62053.0,0.03726085]
[1728168232699,0.166856,62054.0,62053.0,0.10139361]
[1728168233390,0.166856,62054.0,62053.0,0.03726085]
[1728168234584,0.166856,62054.0,62053.0,0.08536301]
[1728168234784,0.166856,62054.0,62053.0,0.03726085]
[1728168235689,0.166856,62054.0,62053.0,0.08536395]
[1728168237799,0.166856,62054.0,62053.0,0.03726085]
[1728168239495,0.166856,62054.0,62053.0,0.39806085]
[1728168241391,0.166856,62054.0,62053.0,0.4461742]
[1728168241597,0.166856,62054.0,62053.0,0.39806085]
[1728168241804,0.19798317,62054.0,62053.0,0.39806085]
[1728168242691,0.09798317,62054.0,62053.0,0.39806085]
[1728168242896,0.19798317,62054.0,62053.0,0.39806085]
[1728168243394,0.19798317,62054.0,62053.0,0.03726085]
[1728168246499,0.19798313,62054.0,62053.0,0.03726085]
[1728168247199,0.166856,62054.0,62053.0,0.03726085]
[1728168257900,0.19798311,62054.0,62053.0,0.03726085]
[1728168258200,0.166856,62054.0,62053.0,0.03726085]
[1728168258597,0.19798311,62054.0,62053.0,0.03726085]
[1728168259101,0.166856,62054.0,62053.0,0.03726085]
[1728168260299,0.1979831,62054.0,62053.0,0.03726085]
[1728168260609,0.166856,62054.0,62053.0,0.03726085]
[1728168260906,0.19798307,62054.0,62053.0,0.03726085]
[1728168261103,0.166856,62054.0,62053.0,0.03726085]
[1728168261300,0.19798309,62054.0,62053.0,0.03726085]
[1728168263912,0.166856,62054.0,62053.0,0.10139308]
[1728168271516,0.166856,62054.0,62053.0,0.03726085]
[1728168272012,0.19798351,62054.0,62053.0,0.03726085]
[1728168278020,0.19798405,62054.0,62053.0,0.03726085]
[1728168279008,0.166856,62054.0,62053.0,0.03726085]
[1728168281329,0.166856,62054.0,62053.0,0.16585008]
[1728168293533,0.166856,62054.0,62053.0,0.1658628]
[1728168293732,0.166856,62054.0,62053.0,0.10171785]
[1728168296326,0.166856,62054.0,62053.0,0.46251785]
[1728168303046,0.166856,62054.0,62053.0,0.52666148]
[1728168303939,0.166856,62054.0,62053.0,0.46251785]
[1728168321359,0.166856,62054.0,62053.0,0.52666148]
[1728168324568,0.066856,62054.0,62053.0,0.52666148]
[1728168324760,0.166856,62054.0,62053.0,0.52666148]
[1728168329267,0.166856,62054.0,62053.0,0.46220448]
[1728168330067,0.166856,62054.0,62053.0,0.39806085]
[1728168330369,0.166856,62054.0,62053.0,0.44619266]
[1728168331177,0.19798313,62054.0,62053.0,0.39806085]
[1728168332270,0.19798313,62054.0,62053.0,0.03726085]
[1728168332572,0.19798313,62054.0,62053.0,0.39806085]
[1728168334172,0.166856,62054.0,62053.0,0.39806085]
[1728168339176,0.166856,62054.0,62053.0,0.44619266]
[1728168342173,0.166856,62054.0,62053.0,0.08539266]
[1728168342570,0.166856,62054.0,62053.0,0.0094]
[1728168351079,0.19798399,62054.0,62053.0,0.0094]
[1728168354287,0.166856,62054.0,62053.0,0.0094]
[1728168361001,0.1979862,62054.0,62053.0,0.0094]
[1728168361294,0.23745151,62054.0,62053.0,0.0094]
[1728168362999,0.23745151,62054.0,62049.0,0.0037]
[1728168363197,0.064461,62049.0,62048.0,0.0004]
[1728168363392,0.0311302,62049.0,62044.0,0.36244]
[1728168363595,0.164466,62045.0,62044.0,0.3608]
[1728168363799,0.1959962,62045.0,62044.0,0.3608]
[1728168364601,0.19599898,62045.0,62044.0,0.3608]
[1728168364897,0.19699898,62045.0,62044.0,0.3648]
[1728168365799,0.19799898,62045.0,62044.0,0.3678]
[1728168366194,0.166866,62045.0,62044.0,0.3678]
[1728168366699,0.166866,62045.0,62044.0,0.007]
[1728168368004,0.1949282,62045.0,62044.0,0.007]
[1728168368707,0.166866,62045.0,62044.0,0.007]
[1728168370711,0.066866,62045.0,62044.0,0.007]